Workbook

Sheet 2(定)
A1: 附件2
A2: 2019年全区公共租赁住房分配情况通报表
A3: （截至2019年6月25日）
A4: 序号 | B4: 城市 | C4: 总套数（套） | E4: 截至2019年6月25日已分配套数（套） | G4: 分配比例 | I4: 2018年12月份正在入住数 | K4: 第一批盘活套数 | L4: 第二批盘活套数
D5: 计划内开工套数（套） | F5: 其中：2019年1-6月新增分配套数
A8: 编号栏 | C8: 1 | D8: 2 | E8: 3 | F8: 4 | G8: 5=（3/2）*100% | K8: 3625 | L8: 5392
A9: 合计 | C9: =SUM(C10:C25) -> 473847 | D9: 471706 | E9: 434214 | F9: 5800 | G9: =E9/D9 -> 92.05% | I9: 396080
A10: 1 | B10: 南宁市 | C10: 81218 | D10: 79452 | E10: 73740 | F10: 614 | G10: =(E10/D10) -> 92.81% | I10: 73471
A11: 2 | B11: 柳州市 | C11: =50121-L11 -> 47159 | D11: =50121-L11 -> 47159 | E11: 42091 | F11: 704 | G11: 89.25% | I11: 44082 | L11: 2962
A12: 3 | B12: 桂林市 | C12: =41161-L12 -> 39381 | D12: =41161-L12 -> 39381 | E12: 35445 | F12: 390 | G12: 90.01% | I12: 35243 | L12: 1780
A13: 4 | B13: 梧州市 | C13: =D13 -> 38529 | D13: =39382-450-L13 -> 38529 | E13: 34983 | F13: 795 | G13: 90.80% | I13: 34802 | K13: 450 | L13: 403 | M13: 系统台账留有一个第二批盘活的公租房项目，建议直接在系统台账删除该项目
A14: 5 | B14: 北海市 | C14: 19100 | D14: 19100 | E14: 17843 | F14: 103 | G14: 93.42% | I14: 17815
A15: 6 | B15: 防城港市 | C15: 10118 | D15: =10213-K15 -> 10118 | E15: 9280 | F15: 65 | G15: 91.72% | I15: 9318 | K15: 95
A16: 7 | B16: 钦州市 | C16: 29527 | D16: 29527 | E16: 26462 | F16: 803 | G16: 89.62% | I16: 27056
A17: 8 | B17: 贵港市 | C17: 30434 | D17: 30420 | E17: 27381 | F17: 490 | G17: 90.01% | I17: 28270
A18: 9 | B18: 玉林市 | C18: 24704 | D18: 24704 | E18: 22891 | F18: 208 | G18: 92.66% | I18: 22700
A19: 10 | B19: 百色市 | C19: 46017 | D19: =46205-K19 -> 45721 | E19: 44510 | F19: 190 | G19: 97.35% | I19: 44470 | K19: 484 | M19: 第二批已盘活136套，但未退回资金，百色市未在系统台账核减
A20: 11 | B20: 贺州市 | C20: =D20+18+1 -> 19590 | D20: =20281-K20-L20 -> 19571 | E20: 17859 | F20: 409 | G20: 91.25% | I20: 17553 | K20: 463 | L20: 247
A21: 12 | B21: 河池市 | C21: =D21 -> 38063 | D21: =38642-579 -> 38063 | E21: 36291 | F21: 47 | G21: 95.34% | I21: 36486 | K21: 579
A22: 13 | B22: 来宾市 | C22: 29236 | D22: 29236 | E22: 27653 | F22: 483 | G22: 94.59% | I22: 27663
A23: 14 | B23: 崇左市 | C23: =19614-1554-3 -> 18057 | D23: =19565-1554 -> 18011 | E23: 17127 | F23: 88 | G23: 95.09% | I23: 17039 | K23: 1554
A24: 15 | B24: 区直 | C24: 2467 | D24: 2467 | E24: 411 | F24: 411 | G24: 16.66% | I24: 411
A25: 16 | B25: 宁铁 | C25: 247 | D25: 247 | E25: 247 | F25: 0 | G25: 100.00% | I25: 247
